[Event "MCCT Oslo Esports Cup 2022"]
[Site "Oslo"]
[Date "2022.04.20"]
[Round "5.1"]
[White "Van Foreest, Jorden"]
[Black "Carlsen, Magnus"]
[Result "1/2-1/2"]
[ECO "B12"]
[WhiteElo "2714"]
[BlackElo "2864"]
[Annotator "TA"]
[PlyCount "66"]
[EventDate "2022.04.14"]
[EventType "tourn"]
[EventCountry "NOR"]
[SourceTitle "playchess.com"]
[Source "ChessBase"]
[SourceQuality "1"]
[TimeControl "900+10"]

{[%evp 9,66,3,16,9,15,-37,-29,-28,-35,-43,-33,-38,-14,-35,0,0,0,0,0,0,0,-9,-17,-16,-31,-29,-26,-28,-38,-57,-61,-89,-47,-73,-84,-125,-61,-150,-3,-7,-13,-8,0,0,0,-9,0,0,0,0,0,0,0,0,0,0,0,0,0]} 1. e4 {[%emt 0:00:00]} c6 {[%emt 0:00:00]} 2. d4 {[%emt 0:00:10]} d5 {[%emt 0:00:04]} 3. e5 {[%emt 0:00:35]} Bf5 {[%emt 0:00:13]} 4. h4 {[%emt 0:00:33]} h5 {[%emt 0:00:33]} 5. Bd3 {[%emt 0:00:13]} Bxd3 {[%emt 0:00:03]} 6. Qxd3 {[%emt 0:00:00][%cal Oe5e6] B12: Caro-Kann: Advance Variation.} Qa5+ {[%emt 0:00:14]} 7. b4 {[%emt 0:00:03]} (7. c3 $11) 7... Qxb4+ $15 {[%emt 0:01:00]} 8. Nd2 {[%emt 0:00:03][%cal Oe5e6] Black has an edge.} e6 {[%emt 0:00:20]} 9. Rb1 {[%emt 0:00:03]} Qe7 {[%emt 0:00:02]} 10. Ne2 {[%emt 0:00:27]} Qc7 {[%emt 0:01:03] [#]} 11. O-O $146 {[%emt 0:01:04]} ({Predecessor:} 11. c4 Ne7 12. O-O Nd7 13. Ba3 c5 14. Nf4 dxc4 15. Nxc4 Nc6 16. d5 Ncxe5 17. Nxe5 Nxe5 {½-½ (66) Martinez Alcantara,J (2615)-Tian,E (2411) New York 2022}) 11... Nd7 {[%emt 0:00:10]} 12. c4 {[%emt 0:00:45]} dxc4 {[%emt 0:00:08]} 13. Nxc4 {[%emt 0:00:21]} Nb6 {[%emt 0:00:03]} 14. Nc3 {[%emt 0:00:31][%cal Be2c3,Bc3e4,Be4d6][%mdl 32]} Nh6 {[%emt 0:00:56]} 15. Bg5 {[%emt 0:01:27]} Nxc4 {[%emt 0:00:31]} 16. Qxc4 {[%emt 0:00:02][%cal Od4d5] And now d5! would win.} Qd7 {[%emt 0:00:16] Against d5} 17. Qb3 {[%emt 0:01:13]} b6 {[%emt 0:01:24]} 18. Rfd1 {[%emt 0:00:41][%cal Od4d5]} Be7 {[%emt 0:00:19]} 19. Ne4 {[%emt 0:00:35]} Nf5 {[%emt 0:00:17][%csl LRd4,LRh4]} 20. Rbc1 {[%emt 0:00:29]} Rd8 {[%emt 0:00:10]} ({Don't do} 20... Nxd4 21. Qc4 c5 22. Bxe7 Kxe7 23. Nxc5 $1 $16) 21. Qf3 {[%emt 0:01:36]} Bxg5 {[%emt 0:03:19]} (21... Nxh4 $2 22. Bxh4 Bxh4 23. Nd6+ Kf8 24. Rxc6 $18) ({Don't play} 21... Nxd4 22. Rxd4 Qxd4 23. Nd6+ Rxd6 24. exd6 Qxd6 25. Rxc6 $11) 22. hxg5 {[%emt 0:00:03][%cal Oc1c6]} Qd5 {[%emt 0:00:42]} ({Black should try} 22... Nxd4 $17 23. Rxd4 Qxd4 24. Nd6+ Rxd6 25. exd6 Qxd6 26. Rxc6 Qd7) 23. Rxc6 {[%emt 0:02:11]} O-O {[%emt 0:00:05]} (23... Nxd4 $2 {[#]} 24. Rxd4 $1 {[%mdl 512]} Qxd4 25. Nd6+ Rxd6 26. Rxd6 Qa1+ 27. Rd1 Qxd1+ 28. Qxd1 $18) (23... Qxc6 $2 24. Nf6+ $1 {[%mdl 512]} gxf6 25. Qxc6+ Kf8 26. gxf6 $18) ({Black should play} 23... Nh4 $1 $17 {[%cal Rh4f3]} 24. Qf4 Qxc6 25. Qxh4 O-O) 24. Nd6 {[%emt 0:00:05] Threatens to win with Qxd5. The position is equal.} Qxf3 {[%emt 0:00:05]} 25. gxf3 {[%emt 0:00:01] Hoping for Nxf5.} Ne7 {[%emt 0:02:17]} 26. Rc7 {[%emt 0:00:15][%csl LRa7,LRe7]} Nd5 {[%emt 0:00:02]} 27. Rxa7 {[%emt 0:00:01]} Kh7 {[%emt 0:00:29]} 28. g6+ {[%emt 0:00:43]} ({Much worse is} 28. Rxf7 Rxf7 29. Nxf7 Rf8 $15) 28... fxg6 {[%emt 0:00:56]} 29. Nf7 {[%emt 0:00:09]} Rde8 {[%emt 0:00:15][%cal Og6g5]} 30. Ng5+ {[%emt 0:00:18]} Kh6 $1 {[%emt 0:00:08]} 31. Nf7+ {[%emt 0:00:05]} Kh7 {[%emt 0:00:06][%cal Og6g5]} 32. Ng5+ {[%emt 0:00:53]} Kh6 {[%emt 0:00:24]} 33. Nf7+ {[%emt 0:00:02]} Kh7 {[%emt 0:00:01] Weighted Error Value: White=0.14 (very precise) /Black=0.15 (very precise)} 1/2-1/2

[Event "MCCT Oslo Esports Cup 2022"]
[Site "Oslo"]
[Date "2022.04.20"]
[Round "5.1"]
[White "Le, Quang Liem"]
[Black "Duda, Jan-Krzysztof"]
[Result "1-0"]
[ECO "D85"]
[WhiteElo "2709"]
[BlackElo "2750"]
[Annotator "TA"]
[PlyCount "71"]
[EventDate "2022.04.14"]
[EventType "tourn"]
[EventCountry "NOR"]
[SourceTitle "playchess.com"]
[Source "ChessBase"]
[SourceQuality "1"]
[TimeControl "900+10"]

{[%evp 9,71,12,38,10,20,1,13,18,14,22,18,18,0,-24,-22,-20,-16,-35,-37,-22,0,0,0,-14,-7,-30,0,0,0,0,0,0,3,0,0,0,45,54,142,146,297,292,297,232,308,311,345,321,352,345,345,345,753,812,826,837,826,817,784,708,1108,1108,981,981]} 1. d4 {[%emt 0:00:00] Tomashevsky,E} Nf6 {[%emt 0:00:00][%cal Bg8f6,Bf6d5,Bd5b6,Bb6d7][%mdl 32]} 2. c4 {[%emt 0:00:04]} g6 {[%emt 0:00:02]} 3. Nc3 {[%emt 0:00:03]} d5 {[%emt 0:00:01]} 4. cxd5 {[%emt 0:00:00]} Nxd5 {[%emt 0:00:01]} 5. Bd2 {[%emt 0:00:01]} Nb6 {[%emt 0:00:13]} 6. e3 {[%emt 0:00:03] D85: Exchange Grünfeld: Unusual White 7th moves and lines with 7 Nf3.} Bg7 {[%emt 0:00:03]} 7. f4 {[%emt 0:00:01] 7.h4 gains popularity.} c5 {[%emt 0:00:14] was the old line (7...0-0).} 8. dxc5 {[%emt 0:00:03] The position is equal.} N6d7 {[%emt 0:00:01]} 9. Ne4 {[%emt 0:00:03]} Bxb2 {[%emt 0:00:08]} 10. Rb1 {[%emt 0:00:02]} Bg7 {[%emt 0:00:01] [#]} 11. h4 $1 $146 {[%emt 0:00:05][%mdl 8] A top novelty.} ({Predecessor:} 11. Bc4 O-O 12. Nf3 Nf6 13. Neg5 e6 14. O-O h6 15. Nxf7 Rxf7 16. Ne5 Rf8 17. Nxg6 {½-½ (31) Tomashevsky,E (2701)-Radjabov,T (2726) Baku 2014 CBM 163 [Tomashevsky,E]}) 11... Nf6 {[%emt 0:05:26] Against h5} (11... f5 12. Ng5 Nxc5 13. Qc2 $14) 12. Nxf6+ {[%emt 0:00:05]} exf6 {[%emt 0:00:20]} 13. h5 {[%emt 0:00:04]} O-O $1 {[%emt 0:00:06]} 14. Nf3 {[%emt 0:00:22]} Re8 {[%emt 0:00:50]} 15. Bc4 {[%emt 0:00:36]} Nc6 {[%emt 0:00:33]} 16. Kf2 {[%emt 0:05:40]} Qe7 {[%emt 0:00:35]} 17. Rb5 {[%emt 0:01:54]} Nd8 {[%emt 0:04:21]} (17... g5 $5 {[%cal Rg5f4]}) 18. hxg6 {[%emt 0:01:52]} hxg6 {[%emt 0:00:00]} 19. Nd4 {[%emt 0:00:02]} Bd7 {[%emt 0:00:17]} 20. Rb3 {[%emt 0:00:16][%cal Of4f5]} Rc8 {[%emt 0:01:09]} 21. Bb4 {[%emt 0:01:32][%cal Oc5c6]} Nc6 {[%emt 0:00:14]} 22. Ba3 {[%emt 0:00:11] Threatens to win with Qd3.} Rcd8 {[%emt 0:00:57]} (22... Qe4 $5 {[%cal Rc6a5]}) 23. Qb1 {[%emt 0:01:24] Strongly threatening Qxg6.} Nxd4 {[%emt 0:00:57]} (23... Qe4 $14) 24. c6 $1 $16 {[%emt 0:00:03][%cal Bc5c6,Bc6d7][%mdl 96] Discovered Attack} Nxb3 $2 {[%emt 0:01:47] This costs Black the game.} (24... Bf5 $2 25. Bxe7 Rxe7 26. Rd3 $1 {[%mdl 512]} (26. cxb7 Rb8 $18) 26... Bxd3 27. Qxd3 $18) (24... Qe4 $16 25. cxd7 Rxd7) 25. Bxe7 $18 {[%emt 0:00:06] Really sharp!} Rxe7 {[%emt 0:00:00]} 26. cxd7 {[%emt 0:02:09]} ({Less strong is} 26. Bxb3 Bxc6 27. Rd1 (27. Qxg6 Rd2+ 28. Ke1 Rxg2 $11) 27... Rxd1 28. Qxd1 Rd7 $16) 26... Nd2 {[%emt 0:00:02] [#]} 27. Qxg6 {[%emt 0:00:17][%cal Oh1h7] Rh7! would kill now.} ({Weaker is} 27. Qxb7 Rexd7 28. Qc6 f5 $14) 27... Kf8 {[%emt 0:00:26]} 28. Qc2 {[%emt 0:00:25]} Ne4+ {[%emt 0:00:19]} 29. Kf3 {[%emt 0:00:03] Bb5 is the strong threat.} Rdxd7 {[%emt 0:00:01]} 30. Rd1 {[%emt 0:00:46] Against Rd2} Nd6 {[%emt 0:00:16] [#] Prevents Bb5.} (30... Rxd1 31. Qxd1 Kg8) 31. Bb5 $1 {[%emt 0:00:47][%cal Od1d6][%mdl 512] White is clearly winning.} Rc7 {[%emt 0:00:15]} 32. Qa4 {[%emt 0:00:15]} ({Inferior is} 32. Rxd6 Rxe3+ 33. Kxe3 Rxc2 $14) 32... Nxb5 {[%emt 0:00:36]} 33. Qxb5 {[%emt 0:00:21] White threatens Rd8+ and mate.} Re8 {[%emt 0:00:16] Prevents Rd8.} 34. Rd7 {[%emt 0:00:06]} Rec8 {[%emt 0:00:02]} 35. Qd5 {[%emt 0:00:15][%csl Gd7][%cal Rd5f7]} Rxd7 {[%emt 0:00:25]} 36. Qxd7 {[%emt 0:00:04] Weighted Error Value: White=0.07 (flawless) /Black=0.22 (precise)} 1-0

[Event "MCCT Oslo Esports Cup 2022"]
[Site "Oslo"]
[Date "2022.04.20"]
[Round "5.1"]
[White "Praggnanandhaa R"]
[Black "Hansen, Eric"]
[Result "1-0"]
[ECO "D11"]
[WhiteElo "2624"]
[BlackElo "2606"]
[Annotator "TA"]
[PlyCount "97"]
[EventDate "2022.04.14"]
[EventType "tourn"]
[EventCountry "NOR"]
[SourceTitle "playchess.com"]
[Source "ChessBase"]
[SourceQuality "1"]
[TimeControl "900+10"]

{[%evp 13,97,12,22,11,25,22,127,113,120,118,107,124,100,91,145,146,141,141,152,154,164,144,133,139,177,188,182,169,179,171,192,159,202,199,221,217,220,192,277,272,306,304,443,438,430,416,525,479,527,527,532,531,709,553,947,949,841,577,589,589,689,629,688,689,727,702,706,546,693,496,516,516,532,451,525,504,518,532,536,531,507,413,612,569,685,663]} 1. d4 {[%emt 0:00:00]} d5 {[%emt 0:00:00]} 2. c4 {[%emt 0:00:03]} c6 {[%emt 0:00:21]} 3. Nf3 {[%emt 0:00:02]} Nf6 {[%emt 0:00:02]} 4. e3 {[%emt 0:00:00]} Bg4 {[%emt 0:00:08]} 5. h3 {[%emt 0:00:10]} Bh5 {[%emt 0:01:07]} 6. Nc3 {[%emt 0:00:05]} e6 {[%emt 0:00:02]} 7. g4 {[%emt 0:00:01]} Bg6 {[%emt 0:00:01]} 8. Ne5 {[%emt 0:00:00] Threatening h4. D11: Slav Defence: 3 Nf3 sidelines and 3...Nf6 4 e3 Bg4.} Nbd7 {[%emt 0:00:22]} 9. h4 {[%emt 0:00:05][%cal Bh3h4,Bh4h5][%mdl 32] [#]} Bb4 $146 {[%emt 0:06:49]} (9... dxc4 $1 $11 10. Nxg6 hxg6) ({Predecessor:} 9... dxc4 10. Nxc4 h6 11. Bg2 Be7 12. O-O Nd5 13. h5 Bh7 14. e4 N5b6 15. Na5 Qc7 {½-½ (68) Niemann,H (2609)-Sanal,V (2561) Vrnjacka Banja 2021}) 10. Nxd7 $1 $16 {[%emt 0:04:09] White is better.} Qxd7 {[%emt 0:00:42] [#]} (10... Nxd7 $2 11. h5 $18) 11. h5 $1 {[%emt 0:00:05]} Be4 {[%emt 0:00:02]} 12. f3 {[%emt 0:00:05]} Qc7 {[%emt 0:00:53] ...Qg3+ is the strong threat.} 13. Rh3 {[%emt 0:00:49][%cal Bh1h3,Bh3f3,Bf3f4][%mdl 32] Prevents Qg3+. aiming for Bd2.} h6 {[%emt 0:00:03]} 14. fxe4 {[%emt 0:00:08]} Nxe4 {[%emt 0:00:01]} 15. Bd2 {[%emt 0:01:57] And now Nxe4 would win.} Ng5 {[%emt 0:00:11] [#]} 16. Rf3 {[%emt 0:00:04]} O-O {[%emt 0:00:26]} (16... Qh2 17. Rf2) 17. Rf4 {[%emt 0:00:56]} Bd6 {[%emt 0:00:12]} 18. c5 {[%emt 0:01:00]} Be7 {[%emt 0:00:02]} 19. Qc2 {[%emt 0:01:09]} b6 {[%emt 0:00:09]} 20. cxb6 {[%emt 0:01:02]} axb6 {[%emt 0:00:00]} 21. O-O-O {[%emt 0:00:11]} Bd6 {[%emt 0:00:11]} 22. Kb1 {[%emt 0:01:43]} b5 {[%emt 0:00:04]} 23. Bd3 {[%emt 0:00:22]} Qa7 {[%emt 0:00:09] [#]} 24. b3 $1 {[%emt 0:00:21]} Rfc8 {[%emt 0:02:15]} 25. Bc1 {[%emt 0:00:34]} Qe7 {[%emt 0:03:00]} (25... Bb4 $142) 26. Rf2 $18 {[%emt 0:01:18]} Bb4 {[%emt 0:00:36]} 27. e4 {[%emt 0:00:42]} c5 {[%emt 0:00:03]} (27... Nh3 $142) 28. Bxg5 {[%emt 0:00:28]} Qxg5 {[%emt 0:00:05]} 29. Nxb5 {[%emt 0:00:01]} c4 {[%emt 0:00:44]} 30. bxc4 {[%emt 0:00:04]} dxc4 {[%emt 0:00:00]} 31. Bxc4 {[%emt 0:00:00]} Qxg4 {[%emt 0:00:01][%cal Oc8c4]} 32. Rdf1 {[%emt 0:00:14]} Ra5 {[%emt 0:00:59][%cal Oa5b5]} 33. Qd3 {[%emt 0:01:01]} Rxc4 {[%emt 0:00:49]} 34. Qxc4 {[%emt 0:00:03]} Qxe4+ {[%emt 0:00:01]} 35. Rc2 {[%emt 0:00:19]} Bf8 {[%emt 0:00:14]} 36. Nc3 {[%emt 0:00:04]} Qg4 {[%emt 0:00:13]} 37. Rcf2 {[%emt 0:00:20]} Ra7 {[%emt 0:00:02]} 38. Rb2 {[%emt 0:00:14]} Qg3 {[%emt 0:00:17] Against Rb8} 39. Nb5 {[%emt 0:00:24] Prevents Rc7.} Rd7 {[%emt 0:00:07]} 40. Rc1 {[%emt 0:00:09]} Be7 {[%emt 0:00:11]} 41. Qc8+ {[%emt 0:00:18]} Rd8 {[%emt 0:00:00]} 42. Qc7 {[%emt 0:00:07]} Qh4 {[%emt 0:00:04]} 43. Qh2 {[%emt 0:00:33]} Qg4 {[%emt 0:00:09]} 44. Ka1 {[%emt 0:00:15]} Bf6 {[%emt 0:00:03]} 45. Rg1 {[%emt 0:00:21]} Qe4 {[%emt 0:00:24]} 46. Qg2 {[%emt 0:00:27]} Qd3 {[%emt 0:00:13]} 47. Qf1 {[%emt 0:00:12] White wants to mate with Qxf6.} Qe3 {[%emt 0:00:06]} (47... Bxd4 $142 48. Nxd4 (48. Qxd3 Bxb2+ 49. Kxb2 Rxd3 $18) 48... Qxd4) 48. Qf2 {[%emt 0:00:03]} Bxd4 {[%emt 0:00:30]} 49. Nxd4 {[%emt 0:00:05] Weighted Error Value: White=0.17 (very precise) /Black=0.44} 1-0

[Event "MCCT Oslo Esports Cup 2022"]
[Site "Oslo"]
[Date "2022.04.20"]
[Round "5.2"]
[White "Carlsen, Magnus"]
[Black "Van Foreest, Jorden"]
[Result "0-1"]
[ECO "A22"]
[WhiteElo "2864"]
[BlackElo "2714"]
[Annotator "TA"]
[PlyCount "50"]
[EventDate "2022.04.14"]
[EventType "tourn"]
[EventCountry "NOR"]
[SourceTitle "playchess.com"]
[Source "ChessBase"]
[SourceQuality "1"]
[TimeControl "900+10"]

{[%evp 9,50,0,0,0,33,44,97,86,91,87,83,92,108,112,102,99,116,68,141,127,111,104,101,127,119,119,102,116,116,102,88,-692,-693,-707,-697,-970,-974,-1350,-1337,-1402,-1390,-2342,-959]} 1. c4 {[%emt 0:00:00]} e5 {[%emt 0:00:00]} 2. e3 {[%emt 0:00:10]} Nf6 {[%emt 0:00:03][%cal Bg8f6,Bf6d5,Bd5b4][%mdl 32]} 3. Nc3 {[%emt 0:00:04]} d5 {[%emt 0:00:09]} 4. cxd5 {[%emt 0:00:04]} Nxd5 {[%emt 0:00:02]} 5. Qh5 {[%emt 0:00:18]} Nc6 {[%emt 0:00:44]} 6. Bb5 {[%emt 0:00:04] A22: English Opening: 1...e5 2 Nc3 Nf6.} Ndb4 {[%emt 0:01:27]} (6... Qd6 $5 {[%cal Rd5b4]}) 7. Qxe5+ {[%emt 0:00:04]} Be6 {[%emt 0:00:37]} (7... Qe7 $14 8. Qxe7+ Bxe7) 8. Qe4 $16 {[%emt 0:00:18] White is better.} a6 {[%emt 0:00:15]} 9. Be2 {[%emt 0:00:13]} Qd7 {[%emt 0:04:35]} 10. a3 {[%emt 0:00:06]} f5 {[%emt 0:00:01]} 11. Qb1 {[%emt 0:00:03]} Nd5 {[%emt 0:00:00]} 12. Nf3 {[%emt 0:00:02]} O-O-O {[%emt 0:00:01] [#]} 13. b4 $146 {[%emt 0:00:30]} (13. O-O $16) ({Predecessor:} 13. O-O Be7 14. b4 g5 15. b5 axb5 16. Bxb5 Qd6 17. Bxc6 Qxc6 18. Nd4 Qd7 19. Ncb5 {1-0 (28) Ivanisevic,I (2606)-Tomashevsky,E (2706) Chess.com INT 2021}) 13... g5 {[%emt 0:00:21]} (13... Nxc3 $14 14. dxc3 Bc4) 14. O-O {[%emt 0:01:43]} (14. Nxg5 $6 Nxc3 15. dxc3 Bc4 $1 $14) 14... g4 {[%emt 0:00:18]} 15. Ng5 {[%emt 0:00:21]} Bg8 {[%emt 0:00:18]} 16. Bb2 {[%emt 0:00:07]} Bg7 {[%emt 0:02:44]} 17. Na4 {[%emt 0:00:04] Hoping for Nc5.} Nf4 {[%emt 0:03:16]} 18. exf4 {[%emt 0:00:58]} Bxb2 {[%emt 0:00:02]} 19. Nc5 {[%emt 0:03:30]} (19. Nxb2 $6 h6 20. Bxg4 fxg4 $11) 19... Qxd2 {[%emt 0:00:06] [#] White must now prevent ...Nd4.} 20. Ra2 $2 {[%emt 0:00:11][%mdl 8192] Now White is beyond hope.} Bxa2 $19 {[%emt 0:00:12] Active counter play! A strong pair of Bishops. Black is clearly winning.} 21. Qxf5+ {[%emt 0:00:27]} Kb8 {[%emt 0:00:02]} 22. Bxa6 {[%emt 0:00:00]} Nd4 {[%emt 0:00:51]} 23. Qxg4 {[%emt 0:00:03]} bxa6 {[%emt 0:00:04]} 24. Nxa6+ {[%emt 0:00:01]} Ka7 {[%emt 0:00:09] aiming for ...Ne2+.} 25. Nxc7 {[%emt 0:00:13]} Qe2 {[%emt 0:00:04] Weighted Error Value: White=0.95/Black=0.10 (very precise)} 0-1

[Event "MCCT Oslo Esports Cup 2022"]
[Site "Oslo"]
[Date "2022.04.20"]
[Round "5.2"]
[White "Giri, Anish"]
[Black "Mamedyarov, Shakhriyar"]
[Result "1/2-1/2"]
[ECO "B33"]
[WhiteElo "2773"]
[BlackElo "2771"]
[Annotator "TA"]
[PlyCount "135"]
[EventDate "2022.04.14"]
[EventType "tourn"]
[EventCountry "NOR"]
[SourceTitle "playchess.com"]
[Source "ChessBase"]
[SourceQuality "1"]
[TimeControl "900+10"]

{[%evp 38,135,75,75,78,67,98,75,81,38,39,47,56,10,21,0,0,0,0,-15,-18,-102,-33,-44,0,0,0,-18,0,0,0,0,0,-33,0,0,0,0,0,0,19,0,108,96,109,108,82,0,0,0,0,0,0,0,0,-346,-325,-303,636,692,739,732,731,340,316,-203,0,-200,-187,-203,-182,-680,-666,-753,-733,-675,-638,-744,-864,-839,-828,-699,0,-403,-420,-390,-382,-387,-383,-629,0,-16,0,0,0,-18,0,0,74,0]} 1. e4 {[%emt 0:00:00]} c5 {[%emt 0:00:00]} 2. Nf3 {[%emt 0:00:02]} e6 {[%emt 0:00:02]} 3. d4 {[%emt 0:00:02]} cxd4 {[%emt 0:00:00]} 4. Nxd4 {[%emt 0:00:01]} Nf6 {[%emt 0:00:01]} 5. Nc3 {[%emt 0:00:02]} Nc6 {[%emt 0:00:00]} 6. Ndb5 {[%emt 0:00:02]} d6 {[%emt 0:00:07]} 7. Bf4 {[%emt 0:00:04]} e5 {[%emt 0:00:03]} 8. Bg5 {[%emt 0:00:01]} a6 {[%emt 0:00:01]} 9. Na3 {[%emt 0:00:01]} b5 {[%emt 0:00:05]} 10. Nd5 {[%emt 0:00:01]} Be7 {[%emt 0:00:03]} 11. Bxf6 {[%emt 0:00:01]} Bxf6 {[%emt 0:00:03]} 12. c3 {[%emt 0:00:01]} Ne7 {[%emt 0:00:05]} 13. Nxf6+ {[%emt 0:00:10]} gxf6 {[%emt 0:00:01]} 14. g3 {[%emt 0:00:47]} Bb7 {[%emt 0:00:18]} 15. Bg2 {[%emt 0:00:02]} f5 {[%emt 0:00:01]} 16. Qe2 {[%emt 0:00:07]} O-O {[%emt 0:00:12]} 17. Nc2 {[%emt 0:00:37]} fxe4 {[%emt 0:00:41]} 18. Bxe4 {[%emt 0:00:01]} Bxe4 {[%emt 0:00:01]} 19. Qxe4 {[%emt 0:00:00]} f5 {[%emt 0:00:01]} 20. Qe2 {[%emt 0:00:04]} f4 {[%emt 0:00:22]} 21. O-O-O {[%emt 0:00:20]} Qb6 {[%emt 0:00:31]} 22. Qg4+ {[%emt 0:01:19]} Kh8 {[%emt 0:00:02]} 23. gxf4 {[%emt 0:01:59]} Rxf4 {[%emt 0:00:34]} 24. Qe6 {[%emt 0:00:02]} Ng6 {[%emt 0:00:18]} 25. h4 {[%emt 0:02:11]} (25. Ne3 $14 Qc6 26. Qxd6 Qxd6 27. Rxd6) 25... Rd8 {[%emt 0:00:13]} (25... Qxf2 26. h5 Nh4 27. Qxd6 $16) 26. Kb1 {[%emt 0:03:20]} Qxf2 {[%emt 0:01:00]} 27. h5 {[%emt 0:00:39]} Rf6 $1 {[%emt 0:00:06]} 28. Qg4 {[%emt 0:00:04]} Ne7 {[%emt 0:00:04]} 29. h6 {[%emt 0:00:44]} (29. Rhe1 $11 {remains equal.}) 29... Rg8 {[%emt 0:00:04]} (29... Nf5 $1 $17 {[%cal Of2c2] White must now prevent ...Qxc2+!} 30. Qg5 Rdf8) 30. Qd7 $15 {[%emt 0:00:14]} Nf5 {[%emt 0:00:51]} 31. Rhf1 {[%emt 0:01:15]} Qe2 {[%emt 0:00:02]} 32. Rc1 {[%emt 0:02:37]} Qg4 {[%emt 0:00:51]} 33. Qa7 {[%emt 0:00:39]} Rxh6 {[%emt 0:01:13]} 34. Qxa6 {[%emt 0:00:01]} Ng3 {[%emt 0:00:19]} 35. Rg1 {[%emt 0:00:04]} Qa4 {[%emt 0:00:58]} 36. Qb6 {[%emt 0:00:03]} Qc4 {[%emt 0:01:53]} 37. Na3 {[%emt 0:00:01]} Qe4+ {[%emt 0:01:04]} 38. Ka1 {[%emt 0:00:02]} Rhg6 {[%emt 0:00:01]} 39. Nxb5 {[%emt 0:00:17]} Nf5 {[%emt 0:01:03]} (39... Qf4 $11) 40. Rxg6 $16 {[%emt 0:00:31]} Rxg6 {[%emt 0:00:00]} 41. Qd8+ {[%emt 0:00:06]} Kg7 {[%emt 0:00:02]} 42. Nc7 {[%emt 0:00:33]} (42. Rf1 Qd3 43. Qd7+ Kh8 $14) (42. Qc7+ $16 Kh8 43. Qd8+ Kg7 44. Qd7+ (44. Rf1 Qd3 $14) 44... Kh8 45. Qf7) 42... h5 $11 {[%emt 0:02:00]} (42... Kh6 43. a3 $16) 43. Ne8+ {[%emt 0:01:46]} Kh6 {[%emt 0:00:01]} 44. Nf6 {[%emt 0:00:01]} Qf3 {[%emt 0:03:12]} 45. a3 {[%emt 0:00:39]} h4 {[%emt 0:01:01]} 46. Qf8+ $2 {[%emt 0:00:28][%mdl 8192]} (46. Qh8+ Kg5 47. Rg1+ Ng3 48. Nh7+ Kg4 $15) (46. Ng8+ $11 Kh5 47. Nf6+ Kg5 48. Nd5+ (48. Rg1+ Kf4 $11) 48... Kh5 49. Nf6+ Kg5 50. Rg1+ Kf4 51. Nd5+ (51. Rxg6 Qf1+ 52. Ka2 Qc4+ 53. b3 Qe2+ 54. Ka1 Qf1+ 55. Kb2 Qf2+ 56. Kc1 Qf1+ 57. Kd2 Qf2+ 58. Kd3 Qf1+ 59. Kd2 Qf2+ 60. Kd3 Qf1+ 61. Kd2 $11) 51... Qxd5 52. Rxg6 Qd1+ 53. Ka2 Qd5+ 54. Kb1 Qd3+ 55. Ka2 Qd5+ 56. Kb1 Qd3+ 57. Ka2 Qd5+) 46... Kg5 $19 {[%emt 0:00:02]} 47. Nh7+ {[%emt 0:00:13]} (47. Rg1+ Ng3 48. Nh7+ Kg4) 47... Kg4 $4 {[%emt 0:00:02][%mdl 8192] [#]} (47... Kf4 $19 48. Qf7 Rg2 49. Qc4+ Kg3) 48. Qf7 $1 $18 {[%emt 0:00:04]} Rg7 {[%emt 0:01:13]} 49. Rg1+ {[%emt 0:00:10]} Qg3 {[%emt 0:00:14]} 50. Nf6+ {[%emt 0:00:30]} (50. Rxg3+ hxg3 51. Qc4+ Kh3 $11) (50. Qc4+ $142 Kh5 51. Nf6+ Kh6 52. Rxg3 hxg3 53. Qe2) 50... Kg5 $18 {[%emt 0:00:02] [#]} 51. Rxg3+ $4 {[%emt 0:00:25][%mdl 8192]} (51. Ne4+ $1 $18 {is the narrow road to win.} Kf4 52. Rf1+ Kxe4 53. Qxf5+ Ke3 54. Rd1 (54. Qc2 h3 $11)) 51... hxg3 $19 {[%emt 0:00:00]} 52. Ne4+ $2 {[%emt 0:00:09]} (52. Nh7+ $11 {and White stays safe.} Kf4 53. Qc4+ Ke3 54. Qf1 (54. Nf6 g2 $17) 54... Rxh7 55. Qxf5 Rh1+ 56. Ka2) 52... Kf4 $19 {[%emt 0:00:01]} 53. Qc4 {[%emt 0:00:09]} d5 $1 {[%emt 0:00:00]} 54. Qf1+ $2 {[%emt 0:00:14]} (54. Qxd5 g2 55. Nc5 g1=Q+ 56. Ka2) 54... Kxe4 $19 {[%emt 0:00:03]} 55. Qb1+ {[%emt 0:00:07]} Kf4 {[%emt 0:00:03]} 56. Qf1+ {[%emt 0:00:00]} Kg5 {[%emt 0:00:18]} 57. a4 {[%emt 0:00:01]} Nh4 {[%emt 0:00:04]} 58. Qe1 {[%emt 0:00:11]} Kf5 {[%emt 0:00:47]} 59. Qf1+ {[%emt 0:00:08]} Ke6 $2 {[%emt 0:00:05]} (59... Kg4 $19 60. Qf6 Rg6 61. Qxe5 g2) 60. Qh3+ $2 {[%emt 0:00:30][%mdl 8192]} (60. Qf8 $1 $11 {and White is okay.} Rg5 61. c4 (61. Qc8+ $2 Ke7 $19)) 60... Nf5 $19 {[%emt 0:00:07]} 61. Qg2 {[%emt 0:00:01]} e4 {[%emt 0:02:02]} 62. a5 {[%emt 0:00:02]} Ke5 {[%emt 0:00:40]} 63. a6 $2 {[%emt 0:00:07]} (63. b4 Nh4 64. Qg1) 63... Ra7 $2 {[%emt 0:00:03]} (63... Rg6 $19 64. a7 Ra6+ 65. Kb1 Rxa7) 64. Qe2 {[%emt 0:00:01]} Nh4 {[%emt 0:00:16]} 65. Qh5+ {[%emt 0:00:15]} Nf5 $1 {[%emt 0:00:00]} 66. Qe2 {[%emt 0:00:05]} Nh4 {[%emt 0:00:02]} 67. Qh5+ {[%emt 0:00:06]} ({White should play} 67. Qb5 $11 Kf5 68. Kb1) 67... Nf5 $1 $16 {[%emt 0:00:00]} 68. Qe2 {[%emt 0:00:01]} ({Don't take} 68. Qh8+ $6 Rg7 69. a7 g2 $16) (68. Qe8+ $16 Kf6 69. Qd8+ Re7 70. a7) 1/2-1/2